{"text_format":"1","workbook":"xlsx","n_sheets":12,"sheets":["Mode emploi 1","Prix nouveau rang 2","Prix nouveau rang 1 forfaitaire","Prix nouveau Rang1 réel","Taux","TGI","TBI","TP","TFA","AUTRES TAXES","Nuitees","Liste act soumises"],"not_rendered":{"charts":0,"images":0,"macros":1,"external_links":4,"defined_names":55,"comments":3,"pivot_tables":0},"unopened":[],"bounds":{"document_bytes":16777216,"sheet_cells":100000,"rows_first":2000,"rows_last":500,"rows_between":2000,"halvings":0,"cell_chars":16384,"cell_head_chars":4096},"cells_cut":0,"cells_raw":0,"read":"whole","date_system":"1900"}

{"sheet":"Mode emploi 1","index":0,"n_rows":20,"n_cols":2,"rows_kept":20,"cut":false,"hidden":true,"merged":[]}
[]
[null,"A LIRE IMPERATIVEMENT AVANT DE COMMENCER"]
[]
[null,"- Les cases en jaune sont à renseigner selon votre cas et besoin. Si vous n'êtes pas concerné alors laissez vide."]
[null,"- Les cases en gris clair contiennent des formules et ne sont pas modifiables"]
[null,"- Les cases en striées ne sont pas modifiables"]
[null,"- Les cases en jaune fluo représentent vos nouveaux prix de vente au public. Elles ne sont pas modifiables."]
[]
[null,"Dans le bloc \"SANS TGC\" (ancienne structure de prix)"]
[null,"- Commencer par renseigner le prix CAF de votre produit/article en D27"]
[null,"- Renseigner les taxes d'importation qui correspondent à votre produit/article"]
[null,"- La TFA de 8% ne s'affiche que si la TBI est vide"]
[null,"- Les \"autres taxes\" à l'importation peuvent se renseigner par pourcentage en C20 ou montant en valeur en D20"]
[null,"- Renseigner les marges soit en pourcentage soit en valeur au plus juste et au mieux de vos connaissances"]
[]
[null,"Dans le bloc \"GAIN SUR PRODUCTIVITE ET COMPETITIVITE\""]
[null,"- renseigner au mieux les baisses de prix correspondantes à la déductibilité de la TGC sur les achats ou au gain de productivité/compétitivité des intermédiaires"]
[]
[null,"Dans le bloc \"AVEC TGC\" (nouvelle structure de prix)"]
[null,"- Renseigner le taux de TGC applicable à votre produit/article dans la cellule F10"]

{"sheet":"Prix nouveau rang 2","index":1,"n_rows":92,"n_cols":15,"rows_kept":92,"cut":false,"hidden":false,"merged":[[65,5,66,7],[65,8,66,8],[6,1,6,7],[35,1,35,7],[64,1,64,7],[36,1,37,3],[36,5,37,7],[36,8,37,8],[0,8,0,10],[7,1,8,3],[7,5,8,7],[7,8,8,8],[8,9,8,10],[3,1,3,8],[5,1,5,7],[70,1,71,1],[70,3,71,3],[41,1,42,1],[41,3,42,3],[12,1,13,1],[12,3,13,3],[65,1,66,3]]}
[null,null,null,null,null,null,null,null,"Gain sur déductibilité et compétitivité"]
[null,null,null,null,null,null,null,null,"Import","Grossiste","Détaillant"]
[]
[null,"Calculateur de prix : rang 2",null,null,null,null,null,null,null,null,null,null,null,null,"Mode d'emploi"]
[]
[null,"Taux de dépréciation du stock",null,null,null,null,null,null,null,null,null,null,null,null,"1. NE renseigner QUE les cellules en jaune pale "]
[null,"Taux de remboursement pondéré pour produits vendus au taux réduit de 3%",null,null,null,null,null,null,0.05,null,null,null,null,null,"2. Saisir dans les cellules grisées ou noires risque de compromettre les calculs automatiques"]
[null,"Sans TGC",null,null,null,"AVEC  TGC ",null,null,"Var° ",null,null,null,"Taux de rang 2",null,"3. Commencer par renseigner votre ancien prix de revient TTC dans la colonne [SANS TGC] : prix valide jusqu'au 30 sept 2018"]
[null,null,null,null,null,null,null,null,null,"Avec gain intermédiaire",null,"Var° ",0.05,null,"4. Renseigner votre marge soit en pourcentage soit en valeur mais il ne peut y avoir 2 marges"]
[null,"Prix de Vente TTC",null,{"$f":"D22+D13","v":0},null,"Prix de Vente TTC",null,{"$f":"H13+H12","v":0},{"$f":"IFERROR((H10-D10)/D10,\"\")","v":""},null,{"$f":"K11+K14+K12","v":0},{"$f":"IFERROR((K10-D10)/D10,\"\")","v":""},0.105,null,"5. S'il s'agit d'un produit réglementé, vérifiez que votre nouveau coefficient de marge ne dépasse pas celui fixé par la loi"]
[null,"Taxes Nuitees Hotel",null,null,null,null,null,null,null,null,null,null,null,null,"5. Tout le reste des cellules devraient se calculer automatiquement"]
[null,null,null,null,null,"TGC",0.03,{"$f":"H13*G12","v":0},null,{"$f":"G12","v":0.03},{"$f":"K14*J12","v":0},null,0.14000000000000001,null,"En cas de doute, n'hésitez pas à nous contacter pour de plus amples explications."]
[null,"Marge (au maximum égale à celle du 30/04/2018)",null,{"$f":"IF(AND(D19>0,C20>0),\"INVALIDE\",IF(C20=\"\",D19,IF(D19=\"\",D22*(C20-1))))","v":0},null,"PV HT public",null,{"$f":"H14+H16","v":0}]
[null,null,null,null,null,"Marge conservée",null,{"$f":"D13","v":0},{"$f":"IFERROR((#REF!-D14)/D14,\"\")","v":""},null,{"$f":"K15+K16","v":0},{"$f":"IFERROR((K14-D14)/D14,\"\")","v":""}]
[null,"Marge détaillant",0,{"$f":"D14*C15","v":0},null,null,{"$f":"IFERROR(H15/#REF!,\"\")","v":""},{"$f":"D15","v":0},null,{"$f":"IFERROR(K15/K14,\"\")","v":""},{"$f":"D15*(1-K3)","v":0}]
[null,null,null,null,null,"Nouveau PR",null,{"$f":"H22-H21","v":0},{"$f":"IFERROR((H16-D16)/D16,\"\")","v":""},null,{"$f":"K17+K18","v":0},{"$f":"IFERROR((K16-D16)/D16,\"\")","v":""}]
[null,"Marge grossiste",0,{"$f":"D16*C17","v":0},null,null,{"$f":"IFERROR(H17/H16,\"\")","v":""},{"$f":"D17","v":0},null,{"$f":"IFERROR(K17/K16,\"\")","v":""},{"$f":"D17*(1-J3)","v":0}]
[null,"PR grossiste",null,{"$f":"IF(C20>0,D22/(1-(C20)),D22+D19)","v":0},null,null,null,{"$f":"H19+H20+H22","v":0},{"$f":"IFERROR((H18-D18)/D18,\"\")","v":""},null,{"$f":"K19+K20+K22","v":0},{"$f":"IFERROR((K18-D18)/D18,\"\")","v":""}]
[null,"Marge en valeur ",null,null,null,null,null,null,null,{"$f":"IFERROR(K19/K22,\"\")","v":""},{"$f":"D19","v":0}]
[null,"ou Coefficient de vente",null,null,null,null,null,null,null,{"$f":"IFERROR(K20/K18,\"\")","v":""},{"$f":"D20*(1-I3)","v":0}]
[null,null,null,null,null,"Droit au remboursement",null,{"$f":"H22*(1-$I$6)*(1-3%)*I7","v":0}]
[null,"Prix revient TTC",null,null,null,"Ancien PR",null,{"$f":"D22","v":0},null,null,{"$f":"SUM(K23:K30)","v":0},{"$f":"IFERROR((K22-D22)/D22,\"\")","v":""}]
[null,"Autres taxes ",0,{"$f":"D30*C23","v":0},null,null,{"$f":"C23","v":0},{"$f":"D23","v":0},null,{"$f":"G23","v":0},{"$f":"H23","v":0}]
[null,"Patente (proportionnel)",1.2E-2,{"$f":"D30*C24","v":0}]
[null,"TFA",{"$f":"IF(C27>0%,0%,8%)","v":0},{"$f":"C25*D30","v":0}]
[null,"TP",0.01,{"$f":"C26*D30","v":0}]
[null,"TBI",0.05,{"$f":"C27*D30","v":0}]
[null,"TGI",null,{"$f":"C28*D30","v":0}]
[null,"Droits de douanes",null,{"$f":"C29*D30","v":0},null,null,{"$f":"C29","v":0},{"$f":"D29","v":0},null,{"$f":"G29","v":0},{"$f":"D29","v":0}]
[null,"CAF (Coût Assurance Frêt)",null,null,null,null,null,{"$f":"$D$30","v":0},null,null,{"$f":"$D$30","v":0}]
[null,"Transport , Assurances",0.02,{"$f":"D32*C31","v":0},null,null,{"$f":"$C$31","v":0.02},{"$f":"$D$31","v":0},null,{"$f":"$C$31","v":0.02},{"$f":"$D$31","v":0}]
[null,"Prix départ usine",null,{"$f":"D30/(1+C31)","v":0},null,null,null,{"$f":"H30/(1+G31)","v":0},null,null,{"$f":"K30/(1+J31)","v":0}]
[]
[null,"Coefficient de vente",null,{"$f":"IFERROR(D10/D22,\"\")","v":""},null,"Coefficient de vente",null,{"$f":"IFERROR(H13/H16,\"\")","v":""},null,null,{"$f":"IFERROR(D14/D30,\"\")","v":""}]
[]
[null,"Taux de remboursement pondéré pour produits vendus au taux normal de 11%",null,null,null,null,null,null,0.105]
[null,"Sans TGC",null,null,null,"AVEC  TGC ",null,null,"Var° "]
[]
[null,"Prix de Vente TTC",null,{"$f":"D51+D42","v":0},null,"Prix de Vente TTC",null,{"$f":"H42+H41","v":0},{"$f":"IFERROR((H39-D39)/D39,\"\")","v":""}]
[null,"Taxes Nuitees Hotel"]
[null,null,null,null,null,"TGC",0.11,{"$f":"H42*G41","v":0}]
[null,"Marge (au maximum égale à celle du 30/04/2018)",null,{"$f":"IF(AND(D48>0,C49>0),\"INVALIDE\",IF(C49=\"\",D48,IF(D48=\"\",D51*(C49-1))))","v":0},null,"PV HT public",null,{"$f":"H43+H45","v":0}]
[null,null,null,null,null,"Marge conservée",null,{"$f":"D42","v":0},{"$f":"IFERROR((#REF!-D43)/D43,\"\")","v":""}]
[null,"Marge détaillant",0,{"$f":"D43*C44","v":0},null,null,{"$f":"IFERROR(H44/#REF!,\"\")","v":""},{"$f":"D44","v":0}]
[null,null,null,null,null,"Nouveau PR",null,{"$f":"H51-H50","v":0},{"$f":"IFERROR((H45-D45)/D45,\"\")","v":""}]
[null,"Marge grossiste",0,{"$f":"D45*C46","v":0},null,null,{"$f":"IFERROR(H46/H45,\"\")","v":""},{"$f":"D46","v":0}]
[null,"PR grossiste",null,{"$f":"IF(C49>0,D51/(1-(C49)),D51+D48)","v":0},null,null,null,{"$f":"H48+H49+H51","v":0},{"$f":"IFERROR((H47-D47)/D47,\"\")","v":""}]
[null,"Marge en valeur"]
[null,"ou Coefficient de vente"]
[null,null,null,null,null,"Droit au remboursement",null,{"$f":"H51*(1-$I$6)*(1-3%)*I36","v":0}]
[null,"Prix revient TTC",null,null,null,"Ancien PR",null,{"$f":"D51","v":0}]
[null,"Autres taxes ",0,{"$f":"D59*C52","v":0},null,null,{"$f":"C52","v":0},{"$f":"D52","v":0}]
[null,"Patente (proportionnel)",1.2E-2,{"$f":"D59*C53","v":0}]
[null,"TFA",{"$f":"IF(C56>0%,0%,8%)","v":0},{"$f":"C54*D59","v":0}]
[null,"TP",0.01,{"$f":"C55*D59","v":0}]
[null,"TBI",0.05,{"$f":"C56*D59","v":0}]
[null,"TGI",null,{"$f":"C57*D59","v":0}]
[null,"Droits de douanes",null,{"$f":"C58*D59","v":0},null,null,{"$f":"C58","v":0},{"$f":"D58","v":0}]
[null,"CAF (Coût Assurance Frêt)",null,null,null,null,null,{"$f":"$D$30","v":0}]
[null,"Transport , Assurances",0.02,{"$f":"D61*C60","v":0},null,null,{"$f":"$C$31","v":0.02},{"$f":"$D$31","v":0}]
[null,"Prix départ usine",null,{"$f":"D59/(1+C60)","v":0},null,null,null,{"$f":"H59/(1+G60)","v":0}]
[]
[null,"Coefficient de vente",null,{"$f":"IFERROR(D39/D51,\"\")","v":""},null,"Coefficient de vente",null,{"$f":"IFERROR(H42/H45,\"\")","v":""}]
[]
[null,"Taux de remboursement pondéré pour produits vendus au taux supérieur de 22%",null,null,null,null,null,null,0.14000000000000001]
[null,"Sans TGC",null,null,null,"AVEC  TGC ",null,null,"Var° "]
[]
[null,"Prix de Vente TTC",null,{"$f":"D80+D71","v":0},null,"Prix de Vente TTC",null,{"$f":"H71+H70","v":0},{"$f":"IFERROR((H68-D68)/D68,\"\")","v":""}]
[null,"Taxes Nuitees Hotel"]
[null,null,null,null,null,"TGC",0.22,{"$f":"H71*G70","v":0}]
[null,"Marge (au maximum égale à celle du 30/04/2018)",null,{"$f":"IF(AND(D77>0,C78>0),\"INVALIDE\",IF(C78=\"\",D77,IF(D77=\"\",D80*(C78-1))))","v":0},null,"PV HT public",null,{"$f":"H72+H74","v":0}]
[null,null,null,null,null,"Marge conservée",null,{"$f":"D71","v":0},{"$f":"IFERROR((#REF!-D71)/D71,\"\")","v":""}]
[null,"Marge détaillant",0,{"$f":"D71*C73","v":0},null,null,{"$f":"IFERROR(H73/#REF!,\"\")","v":""},{"$f":"D73","v":0}]
[null,null,null,null,null,"Nouveau PR",null,{"$f":"H80-H79","v":0},{"$f":"IFERROR((H74-D74)/D74,\"\")","v":""}]
[null,"Marge grossiste",0,{"$f":"D74*C75","v":0},null,null,{"$f":"IFERROR(H75/H74,\"\")","v":""},{"$f":"D75","v":0}]
[null,"PR grossiste",null,{"$f":"IF(C78>0,D80/(1-(C78)),D80+D77)","v":0},null,null,null,{"$f":"H77+H78+H80","v":0},{"$f":"IFERROR((H76-D76)/D76,\"\")","v":""}]
[null,"Marge en valeur"]
[null,"ou Coefficient de vente"]
[null,null,null,null,null,"Droit au remboursement",null,{"$f":"H80*(1-$I$6)*(1-3%)*I65","v":0}]
[null,"Prix revient TTC",null,null,null,"Ancien PR",null,{"$f":"D80","v":0}]
[null,"Autres taxes ",0,{"$f":"D88*C81","v":0},null,null,{"$f":"C81","v":0},{"$f":"D81","v":0}]
[null,"Patente (proportionnel)",1.2E-2,{"$f":"D88*C82","v":0}]
[null,"TFA",{"$f":"IF(C85>0%,0%,8%)","v":0},{"$f":"C83*D88","v":0}]
[null,"TP",0.01,{"$f":"C84*D88","v":0}]
[null,"TBI",0.05,{"$f":"C85*D88","v":0}]
[null,"TGI",null,{"$f":"C86*D88","v":0}]
[null,"Droits de douanes",null,{"$f":"C87*D88","v":0},null,null,{"$f":"C87","v":0},{"$f":"D87","v":0}]
[null,"CAF (Coût Assurance Frêt)",null,null,null,null,null,{"$f":"$D$30","v":0}]
[null,"Transport , Assurances",0.02,{"$f":"D90*C89","v":0},null,null,{"$f":"$C$31","v":0.02},{"$f":"$D$31","v":0}]
[null,"Prix départ usine",null,{"$f":"D88/(1+C89)","v":0},null,null,null,{"$f":"H88/(1+G89)","v":0}]
[]
[null,"Coefficient de vente",null,{"$f":"IFERROR(D68/D80,\"\")","v":""},null,"Coefficient de vente",null,{"$f":"IFERROR(H71/H74,\"\")","v":""}]

{"sheet":"Prix nouveau rang 1 forfaitaire","index":2,"n_rows":63,"n_cols":14,"rows_kept":63,"cut":false,"hidden":false,"merged":[[50,1,51,3],[50,5,51,7],[50,8,51,8],[6,1,7,3],[0,8,0,10],[6,8,7,8],[7,9,7,10],[6,5,7,7],[3,1,3,8],[5,1,5,7],[34,1,34,7],[49,1,49,7],[35,1,36,3],[35,5,36,7],[35,8,36,8]]}
[null,null,null,null,null,null,null,null,"Gain sur déductibilité et compétitivité"]
[null,null,null,null,null,null,null,null,"Import","Grossiste","Détaillant"]
[]
[null,"Calculateur de prix rang 1 : méthode du forfait",null,null,null,null,null,null,null,null,null,null,null,"Mode d'emploi"]
[]
[null,"Taux de remboursement pondéré du taux de TGC réduit de 3%",null,null,null,null,null,null,null,null,null,null,null,"1. NE renseigner QUE les cellules en jaune pale en commençant par le taux d'abattement personnalisé correspondant à chaque taux de TGC en colonne I"]
[null,"Sans TGC",null,null,null,"AVEC  TGC ",null,null,"Var° ",null,null,null,null,"2. Saisir dans les cellules grisées ou noires risque de compromettre les calculs automatiques"]
[null,null,null,null,null,null,null,null,null,"Avec gain intermédiaire",null,"Var° ",null,"3. Commencer par renseigner votre prix de revient TTC actuel dans la colonne [SANS TGC] : prix valide jusqu'au 30 sept 2018"]
[null,"Prix de Vente TTC",null,{"$f":"D19+D21+D18","v":0},null,"Prix de Vente TTC",null,{"$f":"H12+H11","v":0},{"$f":"IFERROR((H9-D9)/D9,\"\")","v":""},null,{"$f":"K10+K13+K11","v":0},{"$f":"IFERROR((K9-D9)/D9,\"\")","v":""},null,"4. Renseigner votre marge soit en pourcentage soit en valeur mais il ne peut y avoir 2 marges"]
[null,"Taxes Nuitees Hotel"]
[null,null,null,null,null,"TGC",0.03,{"$f":"H12*G11","v":0},null,{"$f":"G11","v":0.03},{"$f":"K13*J11","v":0},null,null,"5. Tout le reste des cellules devraient se calculer automatiquement"]
[null,null,null,null,null,"PV HT public",null,{"$f":"H13+H15","v":0},null,null,null,null,null,"En cas de doute, n'hésitez pas à nous contacter pour de plus amples explications."]
[null,null,null,null,null,"Marge conservée",null,{"$f":"D19+D18","v":0},{"$f":"IFERROR((#REF!-D13)/D13,\"\")","v":""},null,{"$f":"K14+K15","v":0},{"$f":"IFERROR((K13-D13)/D13,\"\")","v":""}]
[null,"Marge détaillant",0,{"$f":"D13*C14","v":0},null,null,{"$f":"IFERROR(H14/#REF!,\"\")","v":""},{"$f":"D14","v":0},null,{"$f":"IFERROR(K14/K13,\"\")","v":""},{"$f":"D14*(1-K3)","v":0}]
[null,null,null,null,null,"Prix revient HT",null,{"$f":"H21-H20","v":0},{"$f":"IFERROR((H15-D15)/D15,\"\")","v":""},null,{"$f":"K16+K17","v":0},{"$f":"IFERROR((K15-D15)/D15,\"\")","v":""}]
[null,"Marge grossiste",0,{"$f":"D15*C16","v":0},null,null,{"$f":"IFERROR(H16/H15,\"\")","v":""},{"$f":"D16","v":0},null,{"$f":"IFERROR(K16/K15,\"\")","v":""},{"$f":"D16*(1-J3)","v":0}]
[null,"Prix de vente HT",null,{"$f":"IF(C19>0,D21/(1-(C19)),D21+D18)","v":0},null,null,null,{"$f":"H18+H19+H21","v":0},{"$f":"IFERROR((H17-D17)/D17,\"\")","v":""},null,{"$f":"K18+K19+K21","v":0},{"$f":"IFERROR((K17-D17)/D17,\"\")","v":""}]
[null,"Marge en valeur",null,null,null,null,null,null,null,{"$f":"IFERROR(K18/K21,\"\")","v":""},{"$f":"D18","v":0}]
[null,"Marge en %",null,{"$f":"IF(AND(C19>0,D18=\"\"),$D$17*C19,0)","v":0},null,null,null,null,null,{"$f":"IFERROR(K19/K17,\"\")","v":""},{"$f":"D19*(1-I3)","v":0}]
[null,null,null,null,null,"Abattement forfaitaire",null,{"$f":"H21*$I$6","v":0}]
[null,"Prix revient TTC",null,null,null,"Prix revient TTC",null,{"$f":"D21","v":0},{"$f":"IFERROR((H21-D21)/D21,\"\")","v":""},null,{"$f":"SUM(K22:K29)","v":0},{"$f":"IFERROR((K21-D21)/D21,\"\")","v":""}]
[null,"Autres taxes ",0,{"$f":"D29*C22","v":0},null,null,{"$f":"C22","v":0},{"$f":"D22","v":0},null,{"$f":"G22","v":0},{"$f":"H22","v":0}]
[null,"Patente (proportionnel)",1.2E-2,{"$f":"D29*C23","v":0}]
[null,"TFA",{"$f":"IF(C26>0%,0%,8%)","v":0},{"$f":"C24*D29","v":0}]
[null,"TP",0.01,{"$f":"C25*D29","v":0}]
[null,"TBI",0.05,{"$f":"C26*D29","v":0}]
[null,"TGI",null,{"$f":"C27*D29","v":0}]
[null,"Droits de douanes",null,{"$f":"C28*D29","v":0},null,null,{"$f":"C28","v":0},{"$f":"D28","v":0},null,{"$f":"G28","v":0},{"$f":"D28","v":0}]
[null,"CAF (Coût Assurance Frêt)",null,null,null,null,null,{"$f":"$D$29","v":0},null,null,{"$f":"$D$29","v":0}]
[null,"Transport , Assurances",0.02,{"$f":"D31*C30","v":0},null,null,{"$f":"$C$30","v":0.02},{"$f":"$D$30","v":0},null,{"$f":"$C$30","v":0.02},{"$f":"$D$30","v":0}]
[null,"Prix départ usine",null,{"$f":"D29/(1+C30)","v":0},null,null,null,{"$f":"H29/(1+G30)","v":0},null,null,{"$f":"K29/(1+J30)","v":0}]
[]
[null,"Ratio de vente",null,{"$f":"IFERROR(D9/D21,\"\")","v":""},null,"Ratio de vente",null,{"$f":"IFERROR(H9/H21,\"\")","v":""},null,null,{"$f":"IFERROR(D13/D29,\"\")","v":""}]
[]
[null,"Taux de remboursement pondéré du taux de TGC normal de 11%"]
[null,"Sans TGC",null,null,null,"AVEC  TGC ",null,null,"Var° "]
[]
[null,"Prix de Vente TTC",null,{"$f":"D43+D44+D46","v":0},null,"Prix de Vente TTC",null,{"$f":"H39+H40","v":0},{"$f":"IFERROR((H38-D38)/D38,\"\")","v":""}]
[null,null,null,null,null,"TGC",0.11,{"$f":"H40*G39","v":0}]
[null,null,null,null,null,"PV HT public",null,{"$f":"H41+H42","v":0}]
[null,null,null,null,null,"Marge conservée",null,{"$f":"D44+D43","v":0},""]
[null,null,null,null,null,"Prix revient HT",null,{"$f":"H46-H45","v":0},""]
[null,"Marge en valeur"]
[null,"Marge en %",null,{"$f":"IF(AND(C44>0,D43=\"\"),$D$17*C44,0)","v":0}]
[null,null,null,null,null,"Abattement forfaitaire",null,{"$f":"H46*$I$35","v":0}]
[null,"Prix revient TTC",null,null,null,"Prix revient TTC",null,{"$f":"+D46","v":0}]
[]
[null,"Ratio de vente",null,{"$f":"IFERROR(D38/D46,\"\")","v":""},null,"Ratio de vente",null,{"$f":"IFERROR(H38/H46,\"\")","v":""}]
[]
[null,"Taux de remboursement pondéré du taux de TGC supérieur de 22%"]
[null,"Sans TGC",null,null,null,"AVEC  TGC ",null,null,"Var° "]
[]
[null,"Prix de Vente TTC",null,{"$f":"D58+D59+D61","v":0},null,"Prix de Vente TTC",null,{"$f":"H54+H55","v":0},{"$f":"IFERROR((H53-D53)/D53,\"\")","v":""}]
[null,null,null,null,null,"TGC",0.22,{"$f":"H55*G54","v":0}]
[null,null,null,null,null,"PV HT public",null,{"$f":"H56+H57","v":0}]
[null,null,null,null,null,"Marge conservée",null,{"$f":"D59+D58","v":0},""]
[null,null,null,null,null,"Prix revient HT",null,{"$f":"H61-H60","v":0},""]
[null,"Marge en valeur"]
[null,"Marge en %",null,{"$f":"IF(AND(C59>0,D58=\"\"),$D$17*C59,0)","v":0}]
[null,null,null,null,null,"Abattement forfaitaire",null,{"$f":"H61*$I$50","v":0}]
[null,"Prix revient TTC",null,null,null,"Prix revient TTC",null,{"$f":"+D61","v":0}]
[]
[null,"Ratio de vente",null,{"$f":"IFERROR(D53/D61,\"\")","v":""},null,"Ratio de vente",null,{"$f":"IFERROR(H53/H61,\"\")","v":""}]

{"sheet":"Prix nouveau Rang1 réel","index":3,"n_rows":32,"n_cols":13,"rows_kept":32,"cut":false,"hidden":false,"merged":[[5,1,7,1],[0,7,0,9],[6,2,7,3],[7,8,7,9],[6,5,7,6],[6,7,7,7],[3,1,3,8]]}
[null,null,null,null,null,null,null,"Gain sur déductibilité et compétitivité"]
[null,null,null,null,null,null,null,"Import","Grossiste","Détaillant"]
[]
[null,"Calculateur de prix rang 1 : méthode du réel",null,null,null,null,null,null,null,null,null,null,"Mode d'emploi"]
[]
[null,null,null,null,null,null,null,null,null,null,null,null,"1. NE renseigner QUE les cellules en jaune pale en commençant par votre CAF puis les taux de taxes d'importation payés"]
[null,null,"Sans TGC",null,null,"AVEC  TGC ",null,"Var° ",null,null,null,null,"Vous pouvez aussi saisir un taux global dans la cellule correspondante au taux de TGC mais un avertissement sera émis"]
[null,null,null,null,null,null,null,null,"Avec gain intermédiaire",null,"Var° ",null,"2. Saisir dans les cellules grisées ou noires risque de compromettre les calculs automatiques"]
[null,"Prix de Vente TTC",null,{"$f":"D10+D11+D13","v":0},null,null,{"$f":"G10+G13+G11","v":0},{"$f":"IFERROR((G9-D9)/D9,\"\")","v":""},null,{"$f":"J10+J13+J11","v":0},{"$f":"IFERROR((J9-D9)/D9,\"\")","v":""},null,"3. Renseigner votre marge soit en pourcentage soit en valeur mais il ne peut y avoir 2 marges"]
[null,"Taxes Nuitees Hotel"]
[null,"TGC",null,null,null,null,{"$f":"G13*F11","v":0},null,{"$f":"F11","v":0},{"$f":"J13*I11","v":0},null,null,"4. renseigner le taux de TGC correspondant au produit"]
[null,"TSS",null,null,null,null,null,null,null,null,null,null,"En cas de doute, n'hésitez pas à nous contacter pour de plus amples explications."]
[null,"PV HT ",null,{"$f":"D15/(1-C14)","v":0},null,null,{"$f":"G14+G15","v":0},{"$f":"IFERROR((G13-D13)/D13,\"\")","v":""},null,{"$f":"J14+J15","v":0},{"$f":"IFERROR((J13-D13)/D13,\"\")","v":""},null,"5. Tout le reste des cellules devraient se calculer automatiquement"]
[null,"Marge détaillant",0,{"$f":"D13*C14","v":0},null,{"$f":"IFERROR(G14/G13,\"\")","v":""},{"$f":"D14","v":0},null,{"$f":"IFERROR(J14/J13,\"\")","v":""},{"$f":"D14*(1-J3)","v":0}]
[null,"PR Détaillant",null,{"$f":"D17/(1-C16)","v":0},null,null,{"$f":"G16+G17","v":0},{"$f":"IFERROR((G15-D15)/D15,\"\")","v":""},null,{"$f":"J16+J17","v":0},{"$f":"IFERROR((J15-D15)/D15,\"\")","v":""}]
[null,"Marge grossiste",0,{"$f":"D15*C16","v":0},null,{"$f":"IFERROR(G16/G15,\"\")","v":""},{"$f":"D16","v":0},null,{"$f":"IFERROR(J16/J15,\"\")","v":""},{"$f":"D16*(1-I3)","v":0}]
[null,"PR grossiste",null,{"$f":"IF(C19>0,D20/(1-(C19)),D20+D18)","v":0},null,null,{"$f":"G18+G19+G20","v":0},{"$f":"IFERROR((G17-D17)/D17,\"\")","v":""},null,{"$f":"J18+J19+J20","v":0},{"$f":"IFERROR((J17-D17)/D17,\"\")","v":""}]
[null,"Marge Importateurs en valeur",null,null,null,{"$f":"IFERROR(G18/G17,\"\")","v":""},{"$f":"D18","v":0},null,{"$f":"IFERROR(J18/J20,\"\")","v":""},{"$f":"D18","v":0},null,null,"En cas de doute, n'hésitez pas à nous contacter pour de plus amples explications."]
[null,"OU Marge Importateurs en %",null,{"$f":"$D$17*C19","v":0},null,{"$f":"IFERROR(G19/G17,\"\")","v":""},{"$f":"D19","v":0},null,{"$f":"IFERROR(J19/J17,\"\")","v":""},{"$f":"D19*(1-H3)","v":0}]
[null,"Prix sorti Douanes",null,{"$f":"SUM(D21:D28)","v":0},null,null,{"$f":"SUM(G21:G28)","v":0},{"$f":"IFERROR((G20-D20)/D20,\"\")","v":""},null,{"$f":"SUM(J21:J28)","v":0},{"$f":"IFERROR((J20-D20)/D20,\"\")","v":""}]
[null,"Autres taxes ",0,{"$f":"D28*C21","v":0},null,{"$f":"C21","v":0},{"$f":"D21","v":0},null,{"$f":"F21","v":0},{"$f":"G21","v":0}]
[null,"Patente (proportionnel)",1.2E-2,{"$f":"D28*C22","v":0}]
[null,"TFA",{"$f":"IF(C25>0%,0%,8%)","v":0},{"$f":"C23*D28","v":0}]
[null,"TP",0.01,{"$f":"C24*D28","v":0}]
[null,"TBI",0.05,{"$f":"C25*D28","v":0}]
[null,"TGI",null,{"$f":"C26*D28","v":0}]
[null,"Droits de douanes",null,{"$f":"C27*D28","v":0},null,{"$f":"C27","v":0},{"$f":"D27","v":0},null,{"$f":"F27","v":0},{"$f":"D27","v":0}]
[null,"CAF (Coût Assurance Frêt)",null,null,null,null,{"$f":"$D$28","v":0},null,null,{"$f":"$D$28","v":0}]
[null,"Transport , Assurances",0.02,{"$f":"D30*C29","v":0},null,{"$f":"$C$29","v":0.02},{"$f":"$D$29","v":0},null,{"$f":"$C$29","v":0.02},{"$f":"$D$29","v":0}]
[null,"Prix départ usine",null,{"$f":"D28/(1+C29)","v":0},null,null,{"$f":"G28/(1+F29)","v":0},null,null,{"$f":"J28/(1+I29)","v":0}]
[]
[null,"Ratio de vente",null,{"$f":"IFERROR(D13/D28,\"\")","v":""},null,null,{"$f":"IFERROR(G13/G28,\"\")","v":""},null,null,{"$f":"IFERROR(D13/D28,\"\")","v":""}]

{"sheet":"Taux","index":4,"n_rows":9,"n_cols":5,"rows_kept":9,"cut":false,"hidden":true,"merged":[]}
[]
[null,"Taux TGC","Taux TGI","Taux TBI","Catégories produits"]
[null,0,1E-3,0.05,"Taux réduit"]
[null,0.03,0.01,0,"Taux normal"]
[null,0.06,0.04,null,"Taux majoré"]
[null,0.11,0.11]
[null,0.22,0.21]
[null,null,0.26]
[null,null,0.31]

{"sheet":"TGI","index":5,"n_rows":39,"n_cols":3,"rows_kept":39,"cut":false,"hidden":true,"merged":[]}
["LA TAXE GÉNÉRALE À L’IMPORTATION (TGI) "]
[]
[]
["Applicable à toutes les marchandises importées, la TGI se décline depuis la réforme fiscale douanière en six familles de produits dont les taux varient selon la codification tarifaire :"]
[]
["Taux exempt","EX",0]
["Taux exceptionnel","TX",0.01]
["Taux des produits alimentaires 1","A1",0.04]
["Taux des produits alimentaires 2","A2",0.11]
["Taux des produits alimentaires 3","A3",0.26]
["Taux des produits anti-évasion","TE",0.11]
["Taux des produits culturels et sportifs","CS",0.11]
["Taux normal","TN",0.21]
["Taux majoré","TM",0.31]
[]
["Le taux exempt (EX) s’applique à quatre familles de produits :"]
[]
["les biens de première nécessité : le lait (y compris le lait de soja), le beurre, les céréales, les farines de froment et de malt, les huiles, le sucre, les préparations alimentaires pour enfants, les viandes, les médicaments et produits pharmaceutiques et les matériels pour personnes handicapées."]
["les biens destinés à des organismes particuliers : les navires exerçant une mission de service public, les matériels importés pour la défense, les billets de banque, les timbres fiscaux et postaux et les tabacs pour le compte du monopole."]
["les matières premières et emballages par nature (y compris les produits semi-finis susceptibles d’entrer dans la fabrication locale), les animaux reproducteurs de race pure et les biens d’équipements et de production, à l’exclusion des biens à double usage."]
["les produits de l’art et de la culture : les objets d’art, de collection ou d’antiquité, les supports enregistrés, les livres et publications."]
[]
[" Le taux exceptionnel (TX 1 %) permet d'appliquer à certains produits une procédure d'urgence d'exonération d'une grande partie du taux, plus rapide à mettre en oeuvre que l'exonération totale. "]
[]
["Les taux des produits alimentaires (A1 à A3) sont répartis en trois niveaux dont la segmentation répond à des critères de degré de nécessité et à des facteurs économiques et sociaux :"]
[]
["le taux «alimentaire» de niveau 1 (A1 4%) comprend la catégorie de biens alimentaires considérés comme sociaux, correspondant à des habitudes de consommation particulière à la Nouvelle-Calédonie : jambons, poulets, fromages, fruits et légumes frais, farines, sardines et maquereaux, crackers, eaux minérales, sel et vinaigre. D’autres produits assimilés également à des produits de première nécessité sont classés sous ce taux privilégié : les couches pour bébés et les serviettes et tampons hygiéniques."]
["le taux «alimentaire» de niveau 2 (A2 11%) équivaut au taux normal des biens alimentaires et concerne la majorité des produits tels que les animaux vivants, les plantes, les poissons et crustacés, les œufs, les fruits et légumes congelés, les fruits séchés, le café et le thé, les épices, la charcuterie, les conserves, les pâtes crues congelées et pâtes alimentaires, les confitures, les foies gras, les condiments et assaisonnements."]
["le taux «alimentaire» de niveau 3 (A3 26%) concerne des produits à fort achat d’impulsion pour lesquels une baisse de la taxation ne se justifie pas. En effet, il s’agit de produits dont le prix unitaire est faible et qui sont vendus à « prix rond » et dont une variation de la TGI n’aurait pas une forte incidence sur le prix de vente. De ce fait, la baisse n’étant pas forcément répercutée sur le prix de vente au détail, elle profitera surtout aux fournisseurs extérieurs qui répercuteront, à leur profit, la marge supplémentaire. Sont concernés : les produits de la confiserie, le chocolat, les biscuits, les essences et concentré de café ou de thé, les eaux aromatisées et les jus de fruits."]
[]
["Le taux « anti-évasion » (TE 11%) a été créé afin de limiter l’évasion des achats d’un certain nombre de produits, soit lors de déplacements à l’extérieur de la Nouvelle-Calédonie, soit par Internet ou par ventes par correspondance. Il permet également de rétablir des conditions d’égalité entre les commerçants et les particuliers qui importent directement des marchandises qui peuvent échapper, du fait du mode d’acheminement (voie postale), à la taxation forfaitaire de 30%. Il concerne les produits suivants : les vêtements, les chaussures autres que de sport, les parfums et eaux de toilette, les appareils électroniques portables, les jeux vidéo, les montres."]
[]
["Le taux des produits culturels et sportifs (CS 11%) s’applique aux produits liés à la culture et au sport : les instruments de musique, les planeurs et parachutes, les bicyclettes, les articles et matériels pour la pratique du sport. Ce taux a un caractère social. Son but est de permettre à la jeunesse calédonienne d’avoir accès plus facilement à ces produits et de favoriser ainsi leur insertion sociale. A noter que les navires de plaisance ont été classés dans cette famille afin de maintenir le même niveau de fiscalité actuelle (+1,75%)."]
[]
["Le taux normal (TN 21%) couvre les biens non-alimentaires courants et les biens à double usage."]
[]
["Le taux majoré (TM 31%) touche les produits qui, traditionnellement, supportent une fiscalité élevée : les carburants, les tabacs et articles du tabac, les boissons alcooliques, les armes, les bijoux et les fleurs coupées. Il faut noter que les produits divers en métaux précieux, des véhicules et motos de fortes cylindrées ont été reclassés dans le taux normal afin d’harmoniser la taxation dans les chapitres concernés."]
[]
["Particularité pour la Polynésie française : dans le cadre d’un accord commercial avec la Polynésie française fixé par la délibération n°263 du 19 octobre 2001 (JONC du 30 octobre 2001), certains produits originaires de ce territoire bénéficient d’un taux de TGI fixé à 4% ."]

{"sheet":"TBI","index":6,"n_rows":6,"n_cols":1,"rows_kept":6,"cut":false,"hidden":true,"merged":[]}
["LA TAXE DE BASE À L’IMPORTATION (TBI) "]
[]
[]
["Il s’agit d’une taxe issue de la réforme fiscale douanière qui a vocation à remplacer la taxe spéciale de 2,25%. Cette taxe, dont le taux est fixé à 5% par le tarif des douanes, s’applique à toutes les marchandises importées sauf : le lait (y compris le lait de soja), le riz, le blé, la farine de blé, le souffre, les vaccins, les livres (y compris les journaux, les albums pour enfants et la musique manuscrite), la houille, le fioul BFO, les tabacs et les matériels importés pour les besoins de la défense, les gros engins et matériels agricoles (pour la préparation et le travail du sol ou pour la culture, la récolte, le battage, le triage et le nettoyage des produits agricoles ; pour la laiterie et l’aviculture ; motoculteurs, tracteurs   agricoles et forestiers ; remorques et semi-remorques auto-chargeuses et auto-déchargeuses), des bateaux de pêche (y compris les navires-usines et autres bateaux pour le traitement ou la mise en conserve des produits de la pêche)."]
[]
["La TBI n’est pas perçue lorsque la TFA est exigible."]

{"sheet":"TP","index":7,"n_rows":8,"n_cols":1,"rows_kept":8,"cut":false,"hidden":true,"merged":[]}
["LA TAXE DE PÉAGE (TP) "]
[]
[]
["Les marchandises empruntant la voie maritime sont soumises à une taxe de péage de 1%."]
[]
["Le produit de la taxe est réparti entre le Port de Nouvelle-Calédonie (80%) et la Nouvelle-Calédonie  (20%)."]
[]
["La taxe de péage n'est pas exigible lorsque les autres taxes ne sont pas perçues (délibération n° 30 du 22 décembre 1989)."]

{"sheet":"TFA","index":8,"n_rows":8,"n_cols":1,"rows_kept":8,"cut":false,"hidden":true,"merged":[]}
["LA TAXE SUR LE FRET AÉRIEN (TFA) "]
[]
[]
["Instituée en janvier 2001, la taxe sur le fret aérien, dont le taux est fixé à 8%, est perçue à l’importation  sur toutes les marchandises empruntant la voie aérienne, à l’exception du lait (y compris le lait de soja), du riz, du blé, de la farine de blé, des vaccins, des livres (y compris les journaux, les albums pour enfants et la musique manuscrite), des tabacs importés pour le compte du monopole et des aéronefs dont le poids excède 15.000 kg."]
[]
["Les marchandises supportant la TFA ne sont pas soumises à la TBI."]
[]
["Le produit de cette taxe est affectée à l’Agence pour la desserte aérienne de la Nouvelle-Calédonie (ADANC)."]

{"sheet":"AUTRES TAXES","index":9,"n_rows":45,"n_cols":1,"rows_kept":45,"cut":false,"hidden":true,"merged":[]}
["LA TAXE DE CONSOMMATION SUR LES PRODUITS IMPORTÉS (TCI) "]
[]
[]
["Ad valorem ou spécifique, la TCI touche les produits habituellement surtaxés (carburants, alcools, tabacs) et d’autres produits pour lesquels un abaissement de la fiscalité globale n’a pas paru justifié (les fruits préparés à l’alcool et les armes). Notons que certains produits sont exclus de son champ d’application depuis la réforme douanière : les parfums et eaux de toilette et autres produits de soins contenant de l’alcool, les cartes à jouer."]
[]
["Les taux et quotités sont fixés par le tarif des douanes en fonction de la codification tarifaire des produits concernés."]
[]
["LA TAXE SUR LES ÉNERGIES RENOUVELABLES (TER) "]
[]
[]
["La TER est une taxe spécifique qui s’applique sur un seul produit : l’essence auto. Sa quotité est actuellement de 60F/HL."]
[]
["Son produit est affecté au Fond pour la maîtrise de l’énergie."]
[]
["LA TAXE CONJONCTURELLE POUR LA PROTECTION DE LA PRODUCTION LOCALE (TCPPL) "]
[]
[]
["La TCPPL, taxe ad valorem ou spécifique issue de la réforme fiscale douanière, est exigible sur les produits importés concurrents des produits susceptibles d’être obtenus ou fabriqués localement. Ses taux sont fixés par le tarif des douanes et révisés chaque année par le congrès."]
[]
["Liste des produits soumis à la TCPPL"]
[]
[]
[]
["LA TAXE DE SOUTIEN À LA PRODUCTION AGRICOLE (TSPA) "]
[]
[]
["La TSPA, taxe ad valorem ou spécifique instituée au 1er janvier 2001, est exigible sur les produits agricoles ou alimentaires importés, concurrents des produits obtenus localement. Ses taux sont fixés par le tarif des douanes et révisés chaque année par le Congrès."]
[]
["Le produit de cette taxe est affecté à l’Etablissement de régulation des prix agricoles (ERPA) (70%) et à la Chambre d’agriculture de Nouvelle-Calédonie (CANC) (30%)."]
[]
["Liste des produits soumis à la TSPA"]
[]
["LA TAXE SUR LES ALCOOLS ET LES TABACS EN FAVEUR DU SECTEUR SANITAIRE ET SOCIAL (TAT) "]
[]
[]
["Instituée au 1er janvier 2002, la TAT est une taxe spécifique applicable aux boissons alcooliques importées, aux boissons alcooliques issues de la fabrication locale et sur les tabacs vendus par la Régie des tabacs."]
[]
["Les boissons alcooliques importées sont soumises au tarif des douanes. Les boissons fabriquées localement et les tabacs sont soumis au code des impôts."]
[]
["Le produit de cette taxe est affecté à la CAFAT (1/3) et à l’Agence sanitaire et sociale de la Nouvelle-Calédonie (ASSNC) (2/3)."]
[]
["LA TAXE DE SOUTIEN AUX ACTIONS DE LUTTE CONTRE LES POLLUTIONS (TAP) "]
[]
[]
["Mise en vigueur à compter du 1er mai 2003, la taxe anti-pollution TAP s'applique aux importations d'huiles lubrifiantes relevant des TD n°2710.19.91 à 2710.19.99 sur la base du poids net : 7 F/KN ; ces mêmes produits voient leur taux de TBI fixé à 0%. Lorsque les filières seront organisées effectivement par les provinces, les autres produits créant des pollutions verront leur taux de TAP actuellement EX (exempt) évoluer en fonction de la filière à financer."]

{"sheet":"Nuitees","index":10,"n_rows":0,"n_cols":0,"rows_kept":0,"cut":false,"hidden":true,"merged":[]}

{"sheet":"Liste act soumises","index":11,"n_rows":0,"n_cols":0,"rows_kept":0,"cut":false,"hidden":true,"merged":[]}